[Event "1st Kallai Gabor Memorial 2022"]
[Site "Budapest"]
[Date "2022.11.28"]
[Round "2.1"]
[White "Motylev, Alexander"]
[Black "Troff, Kayden"]
[Result "1-0"]
[ECO "B27"]
[WhiteElo "2628"]
[BlackElo "2483"]
[Annotator "TA"]
[PlyCount "63"]
[EventDate "2022.11.28"]
[EventCountry "HUN"]
[SourceTitle "playchess.com"]
[Source "ChessBase"]
[SourceQuality "1"]
[TimeControl "1500+5"]

{[%evp 9,63,48,43,39,45,55,69,29,29,15,29,31,30,8,15,6,10,7,15,9,35,29,33,-1,46,59,137,113,96,135,185,178,160,180,191,180,178,177,143,189,179,78,316,268,267,260,360,237,1499,1424,1628,1245,2368,909,818,795]} 1. e4 {[%emt 0:00:10]} c5 {[%emt 0:00:07]} 2. Nf3 {[%emt 0:00:02]} g6 {[%emt 0:00:03]} 3. c3 {[%emt 0:00:58]} Nf6 {[%emt 0:00:03]} 4. e5 {[%emt 0:00:17]} Nd5 {[%emt 0:00:03]} 5. d4 {[%emt 0:02:32]} cxd4 {[%emt 0:00:04]} 6. Qxd4 {[%emt 0:00:05] B27: Sicilian: 2 Nf3, unusual Black 2nd moves.} Nc7 {[%emt 0:00:03]} 7. Qh4 {[%emt 0:00:34] [#]} Ne6 $146 {[%emt 0:00:17]} ({Predecessor:} 7... Nc6 8. Na3 Ne6 9. Bh6 Bxh6 10. Qxh6 Qa5 11. Nc4 Qc7 12. O-O-O b5 13. Ne3 a6 {½-½ (41) Grischuk,A (2792)-Iturrizaga Bonelli,E (2653) Dubai 2014}) 8. Bd3 {[%emt 0:00:24] White is much more active. White is slightly better.} Nc6 {[%emt 0:01:03]} 9. O-O {[%emt 0:00:10]} Bg7 {[%emt 0:00:16]} 10. Re1 Qc7 {[%emt 0:01:41][%cal Rc6e5]} 11. Qg3 {[%emt 0:00:33]} O-O {[%emt 0:01:21]} 12. Na3 {[%emt 0:00:37]} a6 {[%emt 0:00:32]} 13. Nc2 {[%emt 0:00:34]} b5 {[%emt 0:02:21]} 14. h4 {[%emt 0:02:18][%cal Bh2h4,Bh4h5][%mdl 32]} Bb7 {[%emt 0:01:39]} 15. h5 {[%emt 0:00:07]} Rad8 {[%emt 0:00:33]} 16. Ncd4 {[%emt 0:00:40]} (16. a4 {simplifies} bxa4 17. Bf1 d6 18. exd6 Qxd6 19. hxg6 hxg6 20. Qxd6 Rxd6 21. Be3) 16... Ncxd4 {[%emt 0:01:11]} (16... Nexd4 $1 $11 {deserves consideration.} 17. cxd4 Nb4) 17. Nxd4 $14 {[%emt 0:00:14]} Nxd4 {[%emt 0:02:32]} (17... Rfe8 $14) 18. cxd4 $16 {[%emt 0:00:03]} d6 {[%emt 0:00:56]} 19. e6 $1 {[%emt 0:02:16] exf7+ is the strong threat.} Bxd4 (19... Bd5 $16) 20. Be3 $18 {[%emt 0:04:01]} Be5 {[%emt 0:02:28]} (20... Bxb2 21. Rac1 Bxc1 22. Rxc1 $18) 21. f4 {[%emt 0:00:17]} Bxb2 {[%emt 0:01:04] [#]} 22. Rac1 {[%mdl 576]} Qa5 {[%emt 0:01:46]} (22... Bxc1 23. Rxc1 Qb8 24. hxg6 $18) 23. hxg6 $1 {[%emt 0:03:05]} fxg6 {[%emt 0:01:54] [#]} (23... fxe6 $2 24. Qh3 $1 (24. gxh7+ Kh8 $17) 24... hxg6 25. Bxg6 $18 (25. Qxe6+ Rf7 $18)) 24. Bxg6 $1 {[%emt 0:00:16][%mdl 576] Intending Bb1+ and mate.} Bg7 (24... hxg6 25. Qxg6+ Bg7 26. Bd4 Rf6 27. Bxf6 Qb6+ 28. Kh2 exf6 29. Rc3) (24... Bxc1 $2 25. Bf7+ Kh8 26. Bd4#) 25. Bf7+ {[%emt 0:02:52]} (25. Bc2 $18 {has better winning chances. Strongly threatening Bd4.} Qb4 26. a3) 25... Rxf7 $2 {[%emt 0:01:54] This move loses the game for Black.} (25... Kh8 $16 {keeps fighting.}) 26. exf7+ {[%emt 0:00:05]} Kxf7 {[%emt 0:00:01]} 27. Qh3 {[%emt 0:00:58]} Rg8 28. Qf5+ $40 {[%emt 0:02:19][%mdl 128] White goes for the king.} ({Not} 28. Qxh7 Kf8 $14) (28. Bf2 Bf6 29. Qxh7+ Rg7 30. Qh5+ Kg8 31. Qe8+ Kh7 $11) 28... Bf6 $2 {[%emt 0:01:57] [#]} (28... Ke8 29. Re2 (29. Qxh7 Qxa2 30. Qg6+ Kf8 $17) 29... Bf6 30. Qh5+ Kf8) 29. Bd4 $1 {[%emt 0:00:02] White is clearly winning.} ({Inferior is} 29. Qxh7+ Kf8 30. Qh6+ Ke8 31. Qh5+ Kf8 32. Qh6+ Ke8 33. Qh5+ Kf8 34. Qh6+ $11) 29... Rxg2+ {[%emt 0:01:18]} 30. Kf1 {[%emt 0:00:01]} Rg6 {[%emt 0:00:03]} 31. Bxf6 {[%emt 0:00:11]} (31. Qe6+ $142 Ke8 32. Bxf6) 31... Bg2+ {[%emt 0:00:21]} 32. Kf2 {[%emt 0:00:01] Weighted Error Value: White=0.23 (precise) /Black=0.32} 1-0

[Event "1st Kallai Gabor Memorial 2022"]
[Site "Budapest"]
[Date "2022.11.28"]
[Round "2.2"]
[White "Gaal, Zsoka"]
[Black "Horvath, Csaba"]
[Result "1-0"]
[ECO "A04"]
[WhiteElo "2286"]
[BlackElo "2502"]
[Annotator "TA"]
[PlyCount "73"]
[EventDate "2022.11.28"]
[EventCountry "HUN"]
[SourceTitle "playchess.com"]
[Source "ChessBase"]
[SourceQuality "1"]
[TimeControl "1500+5"]

{[%evp 14,73,42,26,29,24,47,22,25,35,24,13,25,0,0,0,0,-18,7,15,21,0,21,2,8,10,4,6,5,10,10,4,14,11,12,8,154,167,132,7,10,15,288,83,145,0,577,600,567,14,14,15,17,-47,29994,29995,29995,29996,29997,29998,29998,29999]} 1. Nf3 {[%emt 0:00:15]} g6 {[%emt 0:00:16]} 2. d4 {[%emt 0:00:04]} Bg7 {[%emt 0:00:14]} 3. c4 Nf6 {[%emt 0:00:29]} 4. g3 {[%emt 0:00:09]} O-O {[%emt 0:00:36]} 5. Bg2 {[%emt 0:00:02]} d6 {[%emt 0:00:07]} 6. Nc3 {[%emt 0:00:02]} c6 {[%emt 0:00:10]} 7. O-O {[%emt 0:00:08]} a6 {Recently 7...Bf5 got a lot of attention.} 8. b3 {[%emt 0:02:16]} b5 {[%emt 0:00:17] E62: King's Indian: Fianchetto: 6...c6 and Panno Variation (6...Nc6) without ...a6.} 9. Bb2 Bb7 {[%emt 0:01:56]} 10. Nd2 {[%emt 0:02:02]} Qb6 {The position is equal.} 11. e3 {[%emt 0:03:25]} Nbd7 {[%emt 0:02:14]} 12. a4 {[%emt 0:02:21] [#]} b4 $146 {[%emt 0:01:31]} ({Predecessor:} 12... Rfe8 13. Qc2 Rac8 14. Qd3 b4 15. Ne2 e5 16. c5 dxc5 17. Nc4 e4 18. Bxe4 Qc7 {0-1 (32) Grycel,K (2282)-Movsesian,S (2635) Warsaw 2005}) 13. a5 {[%emt 0:00:11]} Qc7 {[%emt 0:00:02]} 14. Ne2 {[%emt 0:00:05]} e5 {[%emt 0:02:06]} 15. Qc2 {[%emt 0:03:34]} Rfe8 {[%emt 0:00:10]} 16. c5 $1 dxc5 {[%emt 0:01:41]} 17. dxc5 {[%emt 0:05:40]} Bf8 {[%emt 0:00:02]} 18. Nc4 {[%emt 0:03:05]} Bxc5 19. Nc1 Bf8 {[%emt 0:02:43]} 20. Nd3 {[%emt 0:00:34]} e4 {[%emt 0:00:06] Inhibits f4.} 21. Nf4 {[%emt 0:00:28]} c5 {[%emt 0:00:43]} 22. Rad1 {[%emt 0:01:33]} Bc6 {[%emt 0:02:03]} (22... Rad8 {looks sharper.} 23. h4 Ng4 24. Nd5 Bxd5 25. Rxd5 Ndf6) 23. Bh3 {[%mdl 1024] White has compensation.} Rad8 {[%emt 0:02:27]} 24. Rd2 {[%emt 0:00:43]} h5 {[%emt 0:03:11]} (24... g5 $11) 25. Rfd1 $16 {[%emt 0:00:02]} Nh7 {[%emt 0:00:47]} 26. Ba1 {[%emt 0:00:18] White is much more active.} (26. Nd6 $16 Ne5 27. Nxe8 Rxe8 28. Bxe5 Rxe5 29. Bd7) 26... Ndf6 $1 $11 {[%emt 0:00:24]} 27. Nb6 {[%emt 0:00:13]} (27. Bf1 {simplifies} Rxd2 28. Qxd2 g5 29. Nh3) 27... Bb7 $2 {[%emt 0:00:42][%mdl 8192]} (27... Rxd2 $11 28. Qxd2 Qb7) 28. Qb2 $2 {[%emt 0:00:03]} (28. Nxg6 $18 Rxd2 29. Rxd2) 28... Bg7 {[%emt 0:00:06]} (28... Rxd2 $142 29. Rxd2 Bg7) 29. Nbd5 {[%emt 0:00:04]} (29. Bd7 $16 Rf8 30. h4) 29... Qb8 $2 {[%emt 0:00:35][%mdl 8192] [#]} (29... Bxd5 $1 $11 {and Black stays safe.} 30. Nxd5 Qxa5) 30. Ne7+ $1 $18 {[%emt 0:00:08][%mdl 576]} Kf8 {[%emt 0:00:06] [#]} 31. Nfxg6+ {[%emt 0:00:06]} fxg6 $11 {[%emt 0:00:02]} 32. Nxg6+ $40 {[%emt 0:00:02][%mdl 128] White mounts an attack.} Kf7 {[%emt 0:00:15]} 33. Bf5 {[%emt 0:00:08]} (33. Ne5+ $11 Qxe5 34. Rxd8 (34. Qxe5 Rxd2 $17) 34... Qxb2 35. Bxb2) 33... Ng5 $2 {[%emt 0:00:25][%mdl 8192] [#]} (33... Rxd2 $15 34. Qxd2 Bc8 35. Ne5+ Kg8) 34. Rd7+ $1 {[%emt 0:00:02][%mdl 576] Skewer. White mates.} Rxd7 {[%emt 0:00:21]} 35. Rxd7+ {[%mdl 64] Pin} Kg8 {[%emt 0:00:32] [#]} 36. Rxg7+ $1 {[%emt 0:00:02][%mdl 576] Remove Defender, Decoy} Kxg7 {[%emt 0:00:03]} 37. Qxf6+ {[%emt 0:00:02] Weighted Error Value: White=0.52/Black=0.65} 1-0

[Event "1st Kallai Gabor Memorial 2022"]
[Site "Budapest"]
[Date "2022.11.28"]
[Round "2.3"]
[White "Beliavsky, Alexander G"]
[Black "Borhy, Marcell"]
[Result "1-0"]
[ECO "D37"]
[WhiteElo "2487"]
[BlackElo "2407"]
[Annotator "TA"]
[PlyCount "109"]
[EventDate "2022.11.28"]
[EventCountry "HUN"]
[SourceTitle "playchess.com"]
[Source "ChessBase"]
[SourceQuality "1"]
[TimeControl "1500+5"]

{[%evp 15,109,9,29,0,6,0,8,4,11,6,0,-6,38,30,37,38,49,29,39,38,36,44,38,47,63,25,452,22,15,-115,314,53,43,-17,687,476,479,481,462,457,447,447,427,427,425,387,485,484,563,454,450,381,381,381,531,350,523,422,647,456,628,633,633,597,499,499,688,684,649,554,737,737,727,633,647,640,593,587,1000,1002,989,962,1014,992,1001,985,1034,995,1006,991,1053,1016,941,889,29997,29998]} 1. d4 {[%emt 0:00:10]} d5 {[%emt 0:00:46]} 2. c4 {[%emt 0:00:07]} e6 {[%emt 0:00:02]} 3. Nf3 {[%emt 0:00:09]} Nf6 {[%emt 0:00:02]} 4. Nc3 {[%emt 0:00:04]} dxc4 {[%emt 0:00:05]} 5. e4 {[%emt 0:00:06]} Bb4 {[%emt 0:00:02]} 6. Bg5 {[%emt 0:00:04]} h6 {[%emt 0:00:03]} 7. Bxf6 {[%emt 0:00:05]} Qxf6 {[%emt 0:00:02]} 8. Bxc4 {[%emt 0:00:08]} c5 {[%emt 0:00:03] 8...c5 is better than 8...0-0.} 9. e5 {[%emt 0:00:08] D39: Queen's Gambit Declined: Ragozin Defence with 5 Bg5 dxc4.} (9. O-O $5 {[%cal Rc3b5]}) 9... Qd8 {[%emt 0:00:02]} 10. O-O {[%emt 0:00:04]} cxd4 {[%emt 0:00:04]} 11. Ne4 {[%emt 0:00:03][%cal Od1b3,Bc3e4,Be4g3,Bg3h5][%mdl 32] The position is equal.} O-O {[%emt 0:00:06]} 12. Qe2 {[%emt 0:00:03][%mdl 1024] White has compensation.} Be7 {[%emt 0:00:06]} 13. Rfd1 {[%emt 0:00:05]} Qc7 {[%emt 0:00:22]} 14. Rac1 {[%emt 0:01:20]} (14. Nxd4 Qxe5 15. Rd2 a6 $15) (14. Rxd4 Nc6 15. Rd2 Nxe5 16. Nxe5 Qxe5 $15) 14... Bd7 {[%emt 0:00:05]} 15. Ng3 {[%emt 0:01:16]} (15. Nxd4 Qxe5 16. Nf3 Qa5 $15) 15... Bc6 {[%emt 0:00:27]} 16. Nxd4 {[%emt 0:00:37] Nh5 is the strong threat.} Rd8 {[%emt 0:00:58] [#]} 17. Nh5 $146 {[%emt 0:01:58][%cal Oc4e6]} ({Predecessor:} 17. Bxe6 Bg5 18. Bb3 Rxd4 19. Rxd4 Bxc1 20. e6 Na6 21. exf7+ Kh8 22. Qd3 Rf8 23. Qg6 {1-0 (23) Livaic,L (2507)-Borhy,M (2406) Budapest 2021}) 17... Nd7 $1 {[%emt 0:01:31]} 18. Qg4 {[%csl Gh5][%cal Rg4g7]} (18. Nxc6 bxc6 19. Re1 g6 $11) 18... Qxe5 {[%emt 0:06:10]} 19. f4 $40 {[%emt 0:02:43][%mdl 128] White is up to no good.} Qe3+ {[%emt 0:00:10]} 20. Kh1 {[%csl Gh5][%cal Rg4g7]} (20. Kf1 $5 {[%cal Rg4g7]} Bf6 21. Rc3 $14) 20... Bf8 {[%emt 0:05:35][%mdl 8192] [#]} (20... Bf6 $1 $11 {and Black is okay.} 21. Rc3 Qxd4 22. Rxd4 Bxd4) 21. Rc3 $2 {[%emt 0:07:51]} (21. Nxe6 $1 $18 {[%mdl 512]} Ne5 22. Nf6+ Kh8 23. Nxd8 (23. fxe5 Rxd1+ 24. Rxd1 gxf6 $11) 23... Rxd8 24. fxe5 Rxd1+ 25. Rxd1 gxf6 26. Bxf7) 21... Qe4 $1 $11 {Threatens to win with ...Ne5.} 22. Rg3 {[%emt 0:01:07]} (22. Nxc6 $11 Qxc6 23. Be2) 22... Qh7 $2 {[%emt 0:03:13][%mdl 8192]} (22... g6 $6 23. Bd3 Ne5 24. Nf6+ (24. fxe5 Qxd4 25. Nf6+ Kh8 $17) 24... Kh8 25. Nxe4 $11) (22... Kh8 $1 $17 {[%cal Od7e5] stays on course. Hoping for ...Ne5!} 23. h3 Rac8) 23. Bd3 $2 {[%emt 0:02:57]} (23. Bxe6 fxe6 24. Nxe6 (24. Qxe6+ $2 Kh8 $19) 24... Kh8 $1 25. Nxd8 Rxd8 $15) ({White must play} 23. Nxc6 $1 $18 bxc6 24. Rgd3 (24. Bxe6 fxe6 25. Rgd3 Kh8 $15)) 23... Be4 $14 {[%emt 0:00:52]} (23... g6 $2 24. Nxc6 bxc6 25. Bxg6 $1 {[%mdl 512]} Qxg6 26. Qh4 $18) 24. Nxe6 {[%emt 0:00:27]} (24. Re3 $1 $14 Qg6 25. Qxg6 Bxg6 26. Bxg6 fxg6 27. Nxe6) 24... Bxd3 $2 {[%emt 0:00:09][%mdl 8192] White stays focused until the end.} (24... fxe6 $11 25. Qxe6+ Kh8 26. Qxe4 (26. Bxe4 $2 Nc5 $19) 26... Qxe4 27. Bxe4 Nc5 28. Rxd8 Rxd8) 25. Rgxd3 {[%emt 0:00:24]} fxe6 {[%emt 0:00:05]} 26. Rxd7 {[%emt 0:00:25][%mdl 64] Remove Defender} (26. Qxe6+ Kh8 27. Rxd7 Rxd7 28. Qxd7 Qg6 $14) 26... Rxd7 {[%emt 0:00:01]} 27. Nf6+ {[%emt 0:00:09]} Kh8 {[%emt 0:00:02]} 28. Nxh7 {[%emt 0:00:01]} Rxd1+ 29. Qxd1 {[%emt 0:00:01]} Kxh7 $18 {[%emt 0:00:03][%mdl 4096] Endgame KQ-KRB} 30. Qd7 {[%emt 0:00:12][%csl LRb7,LRe6] Prevents Rc8.} b6 {[%emt 0:00:02]} 31. g3 {[%emt 0:00:09]} ({Less strong is} 31. Qxe6 Rd8 32. Qe2 Kh8 $18) 31... Bc5 {[%emt 0:00:14]} 32. Kg2 {[%emt 0:00:09]} a5 {[%emt 0:00:04]} 33. Kf3 {[%emt 0:00:05]} ({Weaker is} 33. Qxe6 Rd8 34. Qe2 Rd6 $18) 33... Rf8 {[%emt 0:00:16]} 34. Qxe6 {[%emt 0:00:07]} Rd8 {[%emt 0:00:02]} 35. Qe4+ {[%emt 0:00:03]} Kh8 {[%emt 0:00:04]} (35... Kg8 $142 36. a3 Rd4) 36. a3 {[%emt 0:00:13]} Rd4 {[%emt 0:00:12]} (36... Rf8 $142 37. b4 axb4 38. axb4 Bd6) 37. Qe2 {[%emt 0:00:14]} Kg8 {[%emt 0:00:47]} 38. Qe8+ {[%emt 0:00:08]} Kh7 {[%emt 0:00:01]} 39. h4 {[%emt 0:00:03]} Rd3+ {[%emt 0:00:33]} 40. Kg4 {[%emt 0:00:08] Black must now prevent Qe4+.} Re3 {[%emt 0:00:06] Prevents Qe4+.} 41. Qf7 {[%emt 0:00:30]} Re7 {[%emt 0:00:02]} 42. Qd5 {[%emt 0:00:09]} Bf2 {[%emt 0:02:20]} 43. Qd3+ {[%emt 0:00:25]} Kg8 {[%emt 0:00:04] [#]} 44. Qd2 $1 {[%emt 0:00:15]} Be3 {[%emt 0:00:16]} 45. Qd5+ {[%emt 0:00:03]} Kf8 {[%emt 0:00:09]} 46. b4 {[%emt 0:00:07]} axb4 {[%emt 0:00:05]} 47. axb4 {[%emt 0:00:01]} Bf2 {[%emt 0:00:02]} 48. Qd2 {[%emt 0:00:08]} Be3 {[%emt 0:00:03]} 49. Qd8+ {[%emt 0:00:04]} Kf7 {[%emt 0:00:49]} 50. h5 {[%emt 0:00:03]} Bf2 {[%emt 0:00:16]} 51. Qd2 {[%emt 0:00:02]} Be3 {[%emt 0:00:05]} 52. Qd5+ {[%emt 0:00:01]} Kf8 {[%emt 0:00:45]} 53. Kf5 {[%emt 0:00:28]} Bf2 {[%emt 0:00:24]} 54. Kg6 {[%emt 0:00:26] Threatening mate with Qf5+.} Bxg3 {[%emt 0:00:22]} 55. Qf5+ {[%emt 0:00:05] Weighted Error Value: White=0.56/Black=0.82} 1-0

[Event "1st Kallai Gabor Memorial 2022"]
[Site "Budapest"]
[Date "2022.11.28"]
[Round "2.5"]
[White "Bjerre, Jonas Buhl"]
[Black "Ruck, Robert"]
[Result "0-1"]
[ECO "B11"]
[WhiteElo "2622"]
[BlackElo "2537"]
[Annotator "TA"]
[PlyCount "92"]
[EventDate "2022.11.28"]
[EventCountry "HUN"]
[SourceTitle "playchess.com"]
[Source "ChessBase"]
[SourceQuality "1"]
[TimeControl "1500+5"]

{[%evp 13,92,14,31,31,33,31,34,31,37,32,25,27,31,18,19,12,21,15,18,16,20,14,14,0,0,0,0,0,0,0,0,0,9,0,14,13,17,12,43,14,16,10,19,2,5,13,14,0,21,9,14,10,32,14,28,24,39,26,31,27,19,0,0,0,0,0,0,-5,7,-6,-8,-10,-5,-72,-70,-60,-50,-206,-218,-190,-193]} 1. e4 {[%emt 0:00:14]} c6 {[%emt 0:00:13]} 2. Nc3 {[%emt 0:00:06]} d5 {[%emt 0:00:02]} 3. Nf3 {[%emt 0:00:02]} Bg4 {[%emt 0:00:03]} 4. h3 {[%emt 0:00:02]} Bxf3 {[%emt 0:00:02]} 5. Qxf3 {[%emt 0:00:03]} e6 {[%emt 0:00:05]} 6. g3 {[%emt 0:00:03]} Nf6 {[%emt 0:00:08]} 7. Bg2 {[%emt 0:00:02]} Nbd7 {[%emt 0:00:08]} 8. d4 {[%emt 0:00:24] B11: Caro-Kann: Two Knights Variation.} Nxe4 {[%emt 0:00:06]} 9. Nxe4 {[%emt 0:00:03]} dxe4 {[%emt 0:00:02]} 10. Qxe4 {[%emt 0:00:04] White is slightly better.} Nf6 11. Qd3 {[%emt 0:00:56]} Be7 {[%emt 0:00:26]} 12. O-O {[%emt 0:00:14]} O-O {[%emt 0:00:30]} 13. Rd1 {[%emt 0:00:16]} Qb6 {[%emt 0:00:08] [#]} 14. Rb1 $146 {[%cal Ob2b4]} ({Predecessor:} 14. a4 a5 15. c3 Rfd8 16. Qe2 Rd7 17. h4 Rad8 18. Bf3 c5 19. Be3 Nd5 20. dxc5 Bxc5 21. Bxc5 Qxc5 {1-0 (56) Damljanovic,B (2504)-Gagunashvili,M (2575) Vrnjacka Banja 2021}) 14... Rfd8 {[%emt 0:00:08]} 15. c3 {[%emt 0:04:37]} Rd7 16. b4 {[%emt 0:01:26]} Rad8 {[%emt 0:02:24]} 17. Qc2 {[%emt 0:00:28]} h6 {[%emt 0:02:28]} 18. Re1 {[%emt 0:00:10]} a5 {[%emt 0:00:38]} 19. a3 {[%emt 0:00:29]} Ra8 {[%emt 0:02:13]} 20. Qb3 {[%emt 0:02:25]} axb4 {[%emt 0:01:05]} 21. axb4 {[%emt 0:00:03]} Bf8 {[%emt 0:01:11]} 22. Bd2 {[%emt 0:00:08]} Rdd8 {[%emt 0:02:40]} 23. Ra1 {[%emt 0:00:35]} Be7 {[%emt 0:02:46]} 24. Ra2 {[%emt 0:00:31]} Bf8 {[%emt 0:00:55]} 25. Rea1 {[%emt 0:00:12]} Rab8 {[%emt 0:00:51]} 26. Qa4 {[%emt 0:04:06]} Qc7 27. Qa5 {[%emt 0:01:12]} Qd7 {[%emt 0:00:10]} 28. Be1 {[%emt 0:00:51]} Bd6 {[%emt 0:00:22]} 29. Qa4 {[%emt 0:02:20]} Bc7 {[%emt 0:00:38]} 30. Qc2 Qd6 31. Bd2 {[%emt 0:01:09]} Qd7 {[%emt 0:02:34]} 32. Qd1 {[%emt 0:00:32]} Bb6 {[%emt 0:01:09]} 33. Qf3 {[%cal Od2h6] next Bxh6! is good for White.} Qe7 {[%emt 0:00:34]} 34. Rb1 {[%emt 0:00:31]} Rd7 {[%emt 0:00:08]} 35. h4 {[%emt 0:00:55]} Qd8 {[%emt 0:00:10]} 36. Bf4 Bc7 {[%emt 0:00:10]} 37. b5 {[%emt 0:00:53]} Bxf4 {[%emt 0:01:09]} 38. Qxf4 {[%emt 0:00:01]} Nd5 {[%emt 0:00:21]} 39. Qd2 {[%emt 0:00:36]} Rc8 {[%emt 0:00:31]} 40. Ra3 {[%emt 0:00:47]} Qe7 {[%emt 0:00:45]} 41. Rab3 {[%emt 0:00:36]} c5 {[%emt 0:00:08]} 42. dxc5 {[%emt 0:00:12][%cal Oc5c6]} ({Of course not} 42. c4 Nb6 43. Rd3 Rcd8 $17) 42... Qxc5 {[%emt 0:00:05]} 43. Kh2 (43. Rd1 $11) 43... Nb6 $17 {[%emt 0:00:16] Black is more active.} (43... Nxc3 $2 44. Qxd7 Nxb1 45. Rxb1 $18) 44. Qf4 {[%emt 0:00:17]} Rcd8 {[%emt 0:00:02]} 45. Qb4 $2 {[%emt 0:00:11]} (45. Re1 $15) 45... Qxf2 $19 {[%emt 0:00:06] [#] ...Rd2 is the strong threat.} 46. Rf1 Qe2 {Weighted Error Value: White=0.15 (very precise) /Black=0.05 (flawless)} 0-1

[Event "1st Kallai Gabor Memorial 2022"]
[Site "Budapest"]
[Date "2022.11.28"]
[Round "3.1"]
[White "Ruck, Robert"]
[Black "Motylev, Alexander"]
[Result "1/2-1/2"]
[ECO "D43"]
[WhiteElo "2537"]
[BlackElo "2628"]
[Annotator "TA"]
[PlyCount "100"]
[EventDate "2022.11.28"]
[EventCountry "HUN"]
[SourceTitle "playchess.com"]
[Source "ChessBase"]
[SourceQuality "1"]
[TimeControl "1500+5"]

{[%evp 23,100,12,33,-1,30,29,54,13,6,20,53,7,-6,0,97,81,193,186,190,183,185,183,212,211,366,202,200,158,241,232,327,329,318,322,367,329,404,322,324,317,432,449,447,443,547,0,0,-35,-42,-37,-34,-241,-241,-224,-235,-227,-212,-190,-186,-298,-299,-584,-584,-584,-584,-580,0,0,0,-566,0,0,0,-531,0,0,0,-460,0]} 1. Nf3 {[%emt 0:00:35]} d5 {[%emt 0:00:15]} 2. d4 {[%emt 0:00:01]} Nf6 {[%emt 0:00:05]} 3. c4 {[%emt 0:00:02]} e6 {[%emt 0:00:03]} 4. Nc3 {[%emt 0:00:02]} c6 {[%emt 0:00:05]} 5. Bg5 {[%emt 0:00:01]} Be7 {[%emt 0:00:23]} 6. e3 {[%emt 0:00:22]} O-O {[%emt 0:00:06]} 7. Bd3 {[%emt 0:00:17]} Nbd7 {[%emt 0:00:18]} 8. O-O {[%emt 0:00:16]} h6 {[%emt 0:00:02]} 9. Bh4 {[%emt 0:00:01]} dxc4 {[%emt 0:00:02]} 10. Bxc4 {[%emt 0:00:02]} b5 {[%emt 0:00:01]} 11. Bd3 {[%emt 0:00:40]} Bb7 12. Rc1 {[%emt 0:02:55]} Rc8 {[%emt 0:00:23]} 13. Qe2 $1 {[%emt 0:00:37] The main line 13.Qe2 scores better than 13.a3. D66: Queen's Gambit Declined: Classical: Main Line (7 Rc1 c6 8 Bd3).} a6 {[%emt 0:01:51]} 14. a4 {[%emt 0:00:51]} b4 {[%emt 0:04:45]} 15. Bxf6 {[%emt 0:02:33] White is slightly better.} (15. Bxa6 $2 Bxa6 16. Qxa6 bxc3 17. Rxc3 c5 $19) 15... Nxf6 {[%emt 0:00:57]} 16. Ne4 {[%emt 0:00:03]} (16. Bxa6 $2 Bxa6 17. Qxa6 bxc3 18. Rxc3 c5 $19) 16... a5 {[%emt 0:01:43][%cal Oc6c5] [#]} 17. Nfd2 $146 {[%emt 0:08:43]} (17. Nc5 $14 Bxc5 18. dxc5 (18. Rxc5 Nd7 $11)) ({Predecessor:} 17. Rfd1 Nd7 18. Bb1 Re8 19. Qc2 Nf8 20. Ne5 Ba8 21. Qe2 g6 22. Ba2 f5 23. Nc5 {1-0 (29) Amura,C (2363)-Sanchez Perona,A (2110) Valencia 2004}) 17... c5 $11 {[%emt 0:01:55]} 18. dxc5 {[%emt 0:04:21]} Qd7 {[%emt 0:02:58]} (18... Rc7 $11 {remains equal.}) 19. Bb5 {[%emt 0:01:49]} Qd5 {[%emt 0:00:08]} (19... Bc6 $16) 20. Nxf6+ $1 $18 {[%emt 0:00:07]} Bxf6 {[%emt 0:00:15][%csl Gb7][%cal Rd5g2]} 21. e4 $36 {[%emt 0:00:05][%mdl 2048] Keeping Black busy.} Qd4 {[%emt 0:00:22]} 22. c6 {[%emt 0:00:06]} Ba8 {[%emt 0:00:02]} (22... Qxb2 $2 23. Rb1 (23. cxb7 $2 {too greedy.} Rxc1 24. Qd3 Rxf1+ 25. Kxf1 Rb8 $19) 23... Qa2 24. cxb7 $18) 23. Rc2 {[%emt 0:00:17]} Rfd8 $2 {[%emt 0:00:35]} (23... Be7 24. Rfc1 Rc7) 24. Nf3 {[%emt 0:00:41]} (24. c7 $142) 24... Qb6 {[%emt 0:00:21][%cal Ob4b3]} 25. Rfc1 {[%emt 0:00:04] c7 is the strong threat.} Qc7 {[%emt 0:02:12]} (25... Bxb2 $16 26. Rxb2 Bxc6 27. Bxc6 Rxc6) 26. h4 {[%emt 0:00:20]} h5 {[%emt 0:00:50]} (26... g6 {keeps fighting.} 27. Qe3 Bg7) 27. e5 {[%emt 0:01:04]} Be7 {[%emt 0:00:01]} 28. Qe4 {[%emt 0:00:05]} g6 {[%emt 0:00:33]} 29. Qe3 {[%emt 0:00:06]} Rd5 {[%emt 0:00:08]} 30. Bd3 {[%emt 0:00:03][%cal Od3g6]} Bf8 {[%emt 0:02:44]} 31. Be4 {[%emt 0:00:02]} Rxe5 {[%emt 0:00:03]} 32. Nxe5 {[%emt 0:00:06]} Qxe5 {[%emt 0:00:01]} 33. g3 {[%emt 0:00:08]} Bh6 {[%emt 0:00:39]} 34. f4 $2 {[%emt 0:00:18]} (34. Qxh6 $18 Qxe4 35. Qe3 Qxe3 36. fxe3) 34... f5 $11 {[%emt 0:00:01]} 35. Rc5 {[%emt 0:00:08]} (35. Rc4 $5 {[%cal Re3b3]} fxe4 36. b3 $17) 35... Qxe4 {[%emt 0:00:17]} 36. Qxe4 {[%emt 0:00:01]} fxe4 {[%emt 0:00:01]} 37. c7 $2 {[%emt 0:00:09]} (37. Rxa5 $15 Kf7 38. Ra7+ Kf6 39. a5) 37... Kf7 $19 {[%emt 0:01:47] White must now prevent ...Bd5.} ({Don't play} 37... Bg7 38. Rb5 Kf8 39. Rb8 $18) 38. Rxa5 {[%emt 0:00:01]} Bd5 {[%emt 0:00:01]} 39. Rb5 {[%emt 0:00:05][%cal Ob5b8] Threatens to win with Rb8!} Ke7 {[%emt 0:00:04] Strongly threatening ...b3.} 40. Rxb4 {[%emt 0:00:03]} Kd7 {[%emt 0:00:15]} 41. a5 (41. Rb8 {was called for.}) 41... Rxc7 42. Rxc7+ {[%emt 0:00:04]} (42. Rd1 e3 43. Re4) 42... Kxc7 {[%emt 0:00:19]} 43. a6 {[%emt 0:00:14]} Bf8 {[%emt 0:00:03]} 44. Rb5 {[%emt 0:00:04]} Bg7 $2 {[%emt 0:00:35]} (44... Kc6 $1 $19 {[%cal Rc6b5]} 45. Ra5 Kb6) 45. Rb4 $11 {[%emt 0:00:09]} Bf8 $2 {[%mdl 8192]} (45... e5 $11) 46. Rb5 $1 $19 Bg7 $2 {[%emt 0:00:17]} (46... Kc6 $1 $19 {[%cal Rc6b5]} 47. Ra5 Bc5+ 48. Kf1 Bc4+ 49. Kg2 Ba7) 47. Rb4 $11 {[%emt 0:00:02]} Bf8 $2 {[%emt 0:00:16][%mdl 8192]} (47... e5 $11) 48. Rb5 $1 $19 {[%emt 0:00:07] [#]} Bg7 $2 {[%emt 0:00:16]} ({Black should try} 48... Kc6 $1 $19 {[%cal Rc6b5]} 49. Ra5 Bc5+ 50. Kf1 Bc4+ 51. Kg2 Ba7) 49. Rb4 $11 {[%emt 0:00:07]} Bf8 $2 {[%emt 0:00:05][%mdl 8192]} (49... e5 $11) 50. Rb5 $1 $19 {[%emt 0:00:02] [#]} Bg7 $2 {[%emt 0:00:04] Weighted Error Value: White=0.47/Black=0.80} (50... Kc6 $1 $19 {[%cal Rc6b5]} 51. Ra5 Kb6) 1/2-1/2